bitfinex/quotes_ETHUSD_20250611
["timestamp","ask_amount","ask_price","bid_price","bid_amount"]
[1749607465048,9.013,2786.2,2785.7,0.987]
[1749607465268,1.0213,2786.1,2785.7,0.987]
[1749607465431,4.7,2786.2,2785.7,0.987]
[1749607465623,8.422,2786.2,2785.7,0.987]
[1749607467918,8.422,2786.2,2785.9,10.0]
[1749607468251,4.7,2786.2,2785.9,10.0]
[1749607468770,4.7,2786.2,2785.9,10.97124189]
[1749607468923,4.7,2786.2,2785.9,10.0]
[1749607470721,4.7,2786.6,2785.9,10.0]
[1749607470943,3.721,2786.5,2785.9,10.0]
[1749607471730,1.2717,2786.4,2786.0,0.987]
[1749607472352,1.2717,2786.4,2786.1,0.987]
[1749607473367,1.2717,2786.4,2786.2,0.987]
[1749607473521,1.2717,2786.4,2786.3,0.987]
[1749607473721,6.5217,2786.4,2786.3,0.987]
[1749607473951,8.58468307,2786.4,2786.3,0.987]
[1749607475055,6.5217,2786.4,2786.3,0.987]
[1749607475627,8.421,2786.4,2786.3,0.987]
[1749607476254,8.421,2786.4,2785.9,10.0]
[1749607476448,1.2039,2786.3,2785.9,10.0]
[1749607476842,1.2039,2786.3,2786.0,0.985]
[1749607477042,0.96249,2786.2,2786.0,0.985]
[1749607477244,3.721,2786.1,2786.0,0.985]
[1749607477847,4.9438,2786.1,2786.0,0.985]
[1749607478053,4.9438,2786.1,2785.9,10.0]
[1749607478239,6.16605694,2786.0,2785.8,9.291]
[1749607478574,7.37329163,2786.0,2785.9,0.985]
[1749607478877,0.55,2785.9,2785.5,9.291]
[1749607479161,0.55,2785.3,2785.2,9.291]
[1749607479368,16.35985694,2785.3,2785.2,10.276]
[1749607481366,19.62106617,2785.3,2785.2,10.276]
[1749607481571,21.58317279,2785.3,2785.2,10.276]
[1749607481748,20.36037279,2785.3,2784.1,0.04]
[1749607481944,1.7728,2784.8,2784.2,0.985]
[1749607482267,3.721,2784.7,2784.2,0.985]
[1749607482671,1.2228,2784.8,2784.3,0.47227227]
[1749607482878,3.721,2784.7,2784.3,1.06624189]
[1749607483657,3.721,2784.7,2784.3,0.56727227]
[1749607483850,3.721,2784.7,2784.3,0.095]
[1749607484045,4.21538,2784.7,2784.2,0.985]
[1749607484861,3.721,2784.6,2784.2,0.985]
[1749607485276,3.721,2784.6,2784.4,10.0]
[1749607485963,3.24200662,2785.3,2784.5,0.095]
[1749607486183,3.722,2785.0,2784.5,0.56727227]
[1749607486875,1.2799,2785.3,2784.5,0.56727227]
[1749607487056,3.722,2785.0,2784.5,0.56727227]
[1749607488878,3.722,2785.0,2784.5,0.095]
[1749607489248,3.722,2785.0,2784.6,0.986]
[1749607489455,4.0942,2785.0,2784.6,0.986]
[1749607489751,3.722,2785.0,2784.6,0.986]
[1749607489949,3.722,2785.0,2784.7,0.986]
[1749607492296,4.7,2785.2,2784.7,0.986]
[1749607492595,3.722,2785.3,2784.7,0.986]
[1749607492967,3.722,2785.2,2784.7,0.986]
[1749607493371,0.3589,2785.5,2784.7,10.91223579]
[1749607493576,4.7,2785.6,2784.8,0.97124189]
[1749607493775,3.721,2785.5,2784.8,0.97124189]
[1749607493970,3.721,2785.5,2784.8,0.49896962]
[1749607494412,1.2114,2785.4,2784.9,10.281]
[1749607495874,1.2114,2785.4,2785.0,0.986]
[1749607496111,0.9089,2785.3,2785.1,0.986]
[1749607497408,5.6089,2785.3,2785.1,0.986]
[1749607497571,0.68203,2785.2,2784.2,9.4252015]
[1749607497771,3.721,2785.1,2784.3,0.986]
[1749607500936,5.6089,2785.3,2784.3,0.986]
[1749607500937,4.7,2785.3,2784.5,9.42726617]
[1749607501209,4.7,2785.3,2784.8,9.42726617]
[1749607501379,4.7,2785.3,2784.8,9.89953844]
[1749607501572,4.7,2785.3,2784.5,9.42726617]
[1749607501827,4.7,2785.3,2784.4,0.47227227]
[1749607502029,4.7,2785.3,2784.5,0.986]
[1749607502842,1.2949,2785.4,2784.5,0.986]
[1749607503096,1.6538,2785.4,2784.6,0.986]
[1749607503412,1.6538,2785.4,2784.7,0.986]
[1749607504040,1.6538,2785.4,2784.8,0.986]
[1749607504606,0.9089,2785.3,2784.1,0.04]
[1749607504807,0.57928,2785.2,2784.2,0.986]
[1749607505131,3.721,2785.1,2784.3,9.295]
[1749607506116,3.721,2785.1,2784.4,10.0]
[1749607506319,1.5937,2785.0,2784.5,0.986]
[1749607506521,1.5937,2785.0,2784.3,9.295]
[1749607506864,1.5937,2785.0,2784.6,0.986]
[1749607506865,0.89037,2784.9,2784.6,0.986]
[1749607507218,0.89037,2784.9,2784.4,10.0]
[1749607507424,0.89037,2784.9,2784.5,0.985]
[1749607507619,0.89037,2784.9,2784.3,9.295]
[1749607507824,1.3012,2784.7,2784.4,0.985]
[1749607508044,0.18512,2784.6,2784.4,0.985]
[1749607508944,1.2711,2785.1,2784.4,0.985]
[1749607509265,3.721,2785.3,2784.5,0.47227227]
[1749607509556,3.721,2785.2,2784.5,0.47227227]
[1749607510059,3.721,2785.2,2784.5,0.82975328]
[1749607510223,1.3007,2785.6,2784.5,10.25701945]
[1749607510424,1.3007,2785.8,2784.8,9.42726617]
[1749607510630,1.3007,2786.6,2785.1,9.42726617]
[1749607510836,3.721,2786.5,2785.2,11.45727227]
[1749607511030,0.55,2786.3,2785.0,10.0]
[1749607511265,0.3589,2786.1,2785.0,10.0]
[1749607511578,1.6596,2786.0,2784.5,1.19333782]
[1749607511717,1.3007,2785.6,2784.3,9.295]
[1749607512027,0.3589,2785.4,2784.4,10.985]
[1749607512824,1.6596,2785.3,2784.4,10.35791141]
[1749607513023,2.82328662,2785.3,2784.5,0.985]
[1749607513556,3.721,2785.2,2784.5,0.985]
[1749607513931,3.721,2785.2,2784.4,10.0]
[1749607514266,0.55,2785.1,2784.5,0.985]
[1749607514446,2.46438662,2785.3,2784.5,0.985]
[1749607514663,4.43743866,2785.2,2784.6,0.47227227]
[1749607514824,4.79633866,2785.2,2784.5,0.985]
[1749607516623,4.79633866,2785.2,2784.3,9.295]
[1749607516624,2.1482,2785.1,2784.3,9.295]
[1749607516954,2.1482,2785.1,2784.4,0.985]
[1749607517123,0.55,2784.9,2784.4,0.985]
[1749607519743,0.55,2784.7,2784.5,0.985]
[1749607520476,3.72,2784.6,2784.5,0.985]
[1749607520946,3.72,2784.6,2784.3,9.295]
[1749607521147,4.7,2784.5,2784.4,0.985]
[1749607523375,4.7,2784.5,2783.9,1.09013212]
[1749607523575,4.7,2784.5,2783.8,7.43953844]
[1749607523788,4.7,2784.9,2784.3,9.42726617]
[1749607524143,4.7,2784.9,2784.3,9.86018241]
[1749607524343,4.7,2784.9,2784.3,10.32748536]
[1749607525179,4.7,2785.5,2784.6,9.42726617]
[1749607526366,4.7,2785.8,2784.9,9.42726617]
[1749607526678,5.9605,2785.9,2784.9,9.42726617]
[1749607528672,5.9605,2785.9,2784.8,3.721]
[1749607528881,5.9605,2785.9,2784.9,10.0]
[1749607529176,0.55,2785.6,2785.0,0.985]
[1749607529394,0.55,2785.6,2784.5,10.0]
[1749607529571,0.55,2785.8,2785.1,0.985]
[1749607530078,0.55,2785.6,2785.1,0.985]
[1749607530266,0.525,2785.5,2785.1,0.985]
[1749607530463,0.525,2785.5,2784.4,9.296]
[1749607530464,1.1835,2785.4,2784.4,9.296]
[1749607530876,5.25,2785.3,2784.5,0.985]
[1749607531853,4.7,2785.3,2784.5,0.985]
[1749607532184,5.71285,2785.3,2784.5,0.985]
[1749607532947,0.3589,2785.2,2784.5,0.985]
[1749607533178,5.0589,2785.2,2784.5,0.985]
[1749607533695,5.0589,2785.2,2784.4,9.296]
[1749607533867,5.0589,2785.2,2784.6,0.985]
[1749607535795,5.0589,2785.2,2784.5,10.0]
[1749607535967,5.0589,2785.2,2784.6,0.985]
[1749607537293,5.0589,2785.2,2784.5,10.0]
[1749607537499,5.0589,2785.2,2784.7,0.984]
[1749607539496,5.0589,2785.2,2784.8,0.984]
[1749607540272,4.7,2785.2,2784.8,0.984]
[1749607540679,4.7,2785.2,2784.5,10.0]
[1749607540873,1.245,2785.1,2784.4,9.296]
[1749607541079,0.63037,2785.0,2784.4,9.296]
[1749607541409,1.245,2784.7,2784.5,0.984]
[1749607542969,0.3587,2784.6,2784.4,9.296]
[1749607543170,0.3587,2784.6,2784.5,0.984]
[1749607546587,0.3587,2784.6,2784.4,9.296]
[1749607546807,0.3587,2784.6,2784.5,0.984]
[1749607547703,5.0587,2784.6,2784.5,0.984]
[1749607547911,5.68907,2784.6,2784.5,0.984]
[1749607548504,5.0587,2784.6,2784.5,0.984]
[1749607549491,8.7787,2784.6,2784.5,0.984]
[1749607553307,8.7787,2784.6,2784.4,9.296]
[1749607553502,8.7787,2784.6,2784.5,0.984]
[1749607553707,8.7787,2784.6,2784.4,9.296]
[1749607553908,8.7787,2784.6,2784.5,0.984]
[1749607555812,1.7858,2784.5,2784.4,9.296]
[1749607556017,1.7858,2784.5,2784.4,10.28]
[1749607556317,2.1445,2784.5,2784.4,10.28]
[1749607556514,4.14367662,2784.5,2784.4,10.28]
[1749607558109,4.14367662,2784.5,2784.4,9.296]
[1749607558302,4.14367662,2784.5,2784.4,10.28]
[1749607559587,8.84367662,2784.5,2784.4,10.28]
[1749607562954,8.29367662,2784.5,2784.4,10.28]
[1749607563231,4.7,2784.5,2784.4,10.71291624]
[1749607563432,1.2939,2785.2,2784.4,11.18021919]
[1749607563633,4.7,2785.4,2784.5,16.17401741]
[1749607563798,1.2939,2785.5,2784.7,6.17401741]
[1749607563998,1.2939,2785.8,2785.3,6.17401741]
[1749607564197,0.3587,2785.7,2785.4,0.984]
[1749607564699,3.72,2785.7,2785.4,0.984]
[1749607565131,0.04,2785.9,2785.4,0.984]
[1749607565318,0.04,2785.9,2785.5,0.43291624]
[1749607565520,0.04,2785.9,2785.6,10.0]
[1749607565815,0.04,2785.9,2785.7,0.90021919]
[1749607566218,0.04,2785.9,2785.6,10.25639759]
[1749607566596,0.04,2785.9,2785.8,9.41592315]
[1749607566830,0.04,2785.9,2785.8,19.84883939]
[1749607567602,0.04,2786.9,2785.9,10.0]
[1749607567913,0.04,2786.9,2786.2,10.0]
[1749607568115,0.04,2786.9,2786.4,10.0]
[1749607569800,0.04,2786.9,2786.6,10.0]
[1749607570134,0.04,2786.9,2786.5,10.0]
[1749607571110,0.04,2786.9,2786.7,9.41592315]
[1749607571312,0.04,2786.9,2786.8,10.0]
[1749607572246,0.04,2787.9,2786.8,40.46730295]
[1749607572443,0.04,2787.9,2787.0,10.0]
[1749607572613,0.04,2787.9,2787.0,3.718]
[1749607572947,0.04,2787.9,2787.1,10.0]
[1749607573121,0.04,2787.9,2787.1,19.41592315]
[1749607573326,0.04,2787.9,2787.2,0.983]
[1749607574015,0.04,2787.9,2787.3,0.00815]
[1749607574417,0.04,2787.9,2787.4,0.983]
[1749607574616,0.04,2787.9,2787.5,0.00814941]
[1749607577511,0.04,2787.9,2787.6,0.983]
[1749607578218,0.04,2787.9,2787.2,0.3562627]
[1749607578532,0.04,2787.9,2787.3,11.29914234]
[1749607579160,0.04,2787.9,2787.6,9.41592315]
[1749607579661,0.04,2787.9,2787.6,9.8832261]
[1749607580558,0.04,2787.9,2787.7,30.46730295]
[1749607580761,0.04,2787.9,2787.8,10.0]
[1749607580963,0.04,2787.9,2787.8,30.0]
[1749607583031,0.04,2787.9,2787.8,30.43291624]
[1749607583271,0.04,2788.9,2787.9,30.0]
[1749607583437,1.3455,2788.9,2788.0,4.698]
[1749607583635,9.41592315,2788.8,2788.1,9.286]
[1749607583837,9.41592315,2788.8,2788.2,0.983]
[1749607584080,1.07614231,2788.7,2788.2,0.983]
[1749607584380,1.3455,2788.9,2788.2,0.983]
[1749607585040,10.76142315,2788.9,2788.2,0.983]
[1749607585238,1.2127,2788.7,2788.1,9.286]
[1749607585437,9.41592315,2788.6,2788.2,0.983]
[1749607586258,1.2127,2788.5,2788.2,0.983]
[1749607586456,2.27556231,2788.5,2788.3,0.983]
[1749607587278,2.82556231,2788.5,2788.4,0.983]
[1749607587654,2.27556231,2788.5,2788.4,0.983]
[1749607587863,1.2127,2788.5,2788.4,0.983]
[1749607591752,1.2305,2788.7,2788.4,0.983]
[1749607592263,4.7,2788.6,2788.4,0.983]
[1749607593184,0.3587,2788.5,2788.4,0.983]
[1749607596258,1.21406687,2788.5,2788.4,0.983]
[1749607598501,1.21406687,2788.5,2788.1,9.286]
[1749607598660,0.3587,2788.5,2788.4,0.982]
[1749607598854,1.2153342,2788.5,2788.4,0.982]
[1749607599063,3.09288049,2788.5,2788.4,0.982]
[1749607600108,1.1783,2788.4,2788.1,9.286]
[1749607600303,0.8566342,2788.3,2788.2,0.982]
[1749607601301,0.85720804,2788.3,2788.1,9.286]
[1749607601611,0.85725539,2788.2,2788.1,9.286]
[1749607601898,1.06081093,2788.2,2788.1,10.268]
[1749607602064,1.06081093,2788.2,2788.1,9.286]
[1749607602265,1.06081093,2788.2,2788.1,10.268]
[1749607602484,1.06081093,2788.2,2788.1,9.286]
[1749607602701,3.86585647,2788.2,2788.1,9.286]
[1749607602865,2.60351093,2788.2,2788.1,10.268]
[1749607603069,2.24481093,2788.2,2788.1,10.268]
[1749607603504,3.31585647,2788.2,2788.1,10.268]
[1749607604183,2.24481093,2788.2,2788.1,10.268]
[1749607604596,2.04125539,2788.2,2788.1,10.268]
[1749607606770,2.04125539,2788.2,2788.1,9.286]
[1749607606964,2.04125539,2788.2,2788.1,10.268]
[1749607608480,2.04125539,2788.2,2788.1,9.286]
[1749607608698,2.04125539,2788.2,2788.1,10.269]
[1749607609005,3.23025548,2788.2,2788.1,10.269]
[1749607611671,3.23025548,2788.2,2788.1,0.983]
[1749607612090,2.37300009,2788.2,2788.1,0.983]
[1749607612410,5.0587,2788.3,2788.1,0.983]
[1749607612768,5.0587,2788.3,2787.5,0.43291624]
[1749607612769,3.715,2788.2,2787.5,0.43291624]
[1749607612973,3.715,2788.2,2787.6,0.983]
[1749607613395,3.715,2788.2,2787.7,0.983]
[1749607613598,5.0587,2788.3,2787.7,0.983]
[1749607613807,5.0587,2788.3,2787.7,1.41591624]
[1749607614112,3.715,2788.3,2787.8,0.43291624]
[1749607614409,1.2442,2788.9,2787.9,0.18442773]
[1749607614715,3.715,2788.8,2788.0,0.43291624]
[1749607615079,0.3587,2788.7,2788.1,9.284]
[1749607615607,0.04,2788.9,2788.1,9.284]
[1749607615771,3.755,2788.9,2788.1,9.284]
[1749607616171,0.3987,2788.9,2788.1,9.284]
[1749607616375,4.1137,2788.9,2788.1,9.284]
[1749607616811,0.3987,2788.9,2788.1,9.284]
[1749607617311,0.04,2788.9,2788.1,13.43191624]
[1749607617503,0.04,2788.9,2788.2,0.43291624]
[1749607617701,0.04,2788.9,2788.3,10.0]
[1749607618502,0.04,2788.9,2788.3,10.43291624]
[1749607619532,0.04,2788.9,2788.4,0.43291624]
[1749607619684,0.04,2788.9,2788.5,0.982]
[1749607621716,0.04,2788.9,2788.6,30.0]
[1749607622221,0.04,2788.9,2788.8,19.41592315]
[1749607622523,0.04,2788.9,2788.8,49.41592315]
[1749607622737,0.04,2788.9,2788.8,20.716]
[1749607623507,0.04,2788.9,2788.8,10.982]
[1749607624002,0.04,2788.9,2788.2,0.24264547]
[1749607624310,0.04,2788.9,2788.3,10.982]
[1749607624495,0.04,2788.9,2788.4,0.982]
[1749607626624,0.04,2788.9,2788.5,10.43291624]
[1749607626792,1.2125,2789.5,2788.5,10.43291624]
[1749607627188,1.2125,2789.5,2788.5,10.0]
[1749607627596,3.714,2789.6,2788.5,10.0]
[1749607630219,3.714,2789.6,2788.3,0.35611846]
[1749607630418,3.714,2789.6,2788.3,10.0]
[1749607630749,1.1509,2789.4,2788.5,10.0]
[1749607631042,1.1509,2789.4,2788.6,0.982]
[1749607631193,0.58509,2789.3,2788.6,0.982]
[1749607631718,0.58509,2789.3,2788.3,30.0]
[1749607631896,0.58509,2789.3,2788.7,0.982]
[1749607632299,4.7,2789.5,2788.7,0.982]
[1749607632607,1.1982,2789.7,2788.7,11.41491624]
[1749607632811,0.3587,2789.6,2788.7,15.12791624]
[1749607633013,4.7,2789.8,2788.9,19.41592315]
[1749607633941,1.5969,2789.9,2788.9,19.41592315]
[1749607633942,0.04,2789.9,2789.0,9.41592315]
[1749607634100,0.04,2789.9,2789.1,10.0]
[1749607635544,0.04,2789.9,2789.1,13.713]
[1749607635749,0.04,2789.9,2789.2,10.0]
[1749607636899,0.04,2789.9,2789.3,0.982]
[1749607639008,1.2221,2789.8,2789.4,0.982]
[1749607639208,0.04,2789.9,2789.4,0.982]
[1749607639661,0.04,2789.9,2789.4,1.41491624]
[1749607640358,0.04,2789.9,2789.6,30.0]
[1749607640649,0.04,2790.9,2789.9,14.781]
[1749607640812,0.04,2790.9,2790.0,13.975]
[1749607641212,0.3987,2790.9,2790.0,13.975]
[1749607641922,0.3987,2790.9,2790.1,0.982]
[1749607642242,1.5884,2790.8,2790.2,0.982]
[1749607642412,1.5884,2790.8,2790.0,9.28]
[1749607642954,1.2297,2790.8,2790.1,0.982]
[1749607643848,1.2297,2790.8,2790.2,0.982]
[1749607644935,1.2297,2790.8,2790.3,0.982]
[1749607645614,1.2297,2790.8,2790.0,9.28]
[1749607645831,1.2297,2790.8,2790.1,0.982]
[1749607646241,1.1684,2790.7,2790.1,0.982]
[1749607646444,1.1684,2790.5,2790.1,0.982]
[1749607646760,1.1684,2790.5,2790.2,0.982]
[1749607647153,1.1684,2790.5,2790.3,0.982]
[1749607650753,4.9228,2790.8,2790.3,0.982]
[1749607651581,1.2108,2790.8,2790.3,0.982]
[1749607653236,1.2108,2790.8,2790.3,2.073546]
[1749607653460,0.04,2790.9,2790.3,0.982]
[1749607655659,1.1675,2790.7,2790.4,0.982]
[1749607655890,1.5262,2790.7,2790.4,0.982]
[1749607656057,1.09421231,2790.6,2790.5,0.982]
[1749607656254,2.32521231,2790.6,2790.5,0.982]
[1749607657792,2.32521231,2790.6,2790.0,9.28]
[1749607657960,2.32521231,2790.6,2790.5,0.982]
[1749607661283,2.32521231,2790.6,2790.0,9.28]
[1749607661479,2.32521231,2790.6,2790.5,0.981]
[1749607662799,2.68391231,2790.6,2790.5,0.981]
[1749607662960,0.55,2790.5,2788.7,10.0]
[1749607663315,1.1475,2790.3,2789.3,10.258]
[1749607663599,1.1475,2790.3,2789.4,10.0]
[1749607664479,1.1475,2790.3,2789.4,10.3630806]
[1749607665097,1.1475,2790.3,2789.5,0.981]
[1749607665098,4.7,2790.2,2789.5,0.981]
[1749607666669,4.7,2790.2,2789.4,0.3630806]
[1749607666869,1.1878,2790.1,2789.5,0.981]
[1749607667190,1.5465,2790.1,2789.6,0.981]
[1749607667699,1.1878,2790.1,2789.6,0.981]
[1749607668000,4.8988,2790.1,2789.7,0.43291624]
[1749607668177,1.1878,2790.1,2789.7,0.43291624]
[1749607668993,1.1878,2790.1,2789.6,0.981]
[1749607669504,2.14768,2790.1,2789.6,0.981]
[1749607669693,0.55,2790.0,2789.7,0.982]
[1749607669874,0.55,2790.0,2789.3,9.277]
[1749607669875,0.55,2790.0,2789.8,0.982]
[1749607670499,1.1881,2789.9,2789.3,9.277]
[1749607670701,1.1881,2789.9,2789.4,0.982]
[1749607670862,3.711,2789.8,2789.4,0.982]
[1749607671377,1.1686,2789.7,2789.4,0.982]
[1749607672668,1.1686,2789.7,2789.5,0.982]
[1749607674502,0.55,2790.0,2789.6,0.43291624]
[1749607674503,4.9362,2790.0,2789.6,0.43291624]
[1749607674713,3.712,2790.0,2789.6,0.43291624]
[1749607676118,3.712,2790.0,2789.5,0.982]
[1749607676475,1.1775,2790.5,2789.6,0.43291624]
[1749607676678,1.1775,2790.5,2789.6,0.86127728]
[1749607676889,3.711,2790.4,2789.4,10.0]
[1749607677132,1.1775,2790.3,2789.7,0.982]
[1749607677322,0.48885,2790.2,2789.7,0.982]
[1749607678124,0.48885,2790.2,2789.8,0.982]
[1749607678624,1.1694,2790.0,2789.8,0.982]
[1749607679036,1.7194,2790.0,2789.9,0.982]
[1749607679230,1.1694,2789.8,2789.3,9.277]
[1749607679394,0.64194,2789.7,2789.4,0.982]
[1749607679907,1.00064,2789.7,2789.5,0.982]
[1749607681622,1.55064,2789.7,2789.6,0.982]
[1749607681982,1.00064,2789.7,2789.6,0.982]
[1749607682190,1.5643,2789.6,2789.3,9.277]
[1749607682480,0.745624,2789.5,2789.4,0.982]
[1749607682883,1.5643,2789.6,2789.4,0.982]
[1749607683084,3.711,2789.5,2789.4,0.982]
[1749607687903,4.0697,2789.5,2789.4,0.982]
[1749607688826,1.2056,2789.6,2789.4,10.261]
[1749607689027,3.711,2789.5,2789.4,10.261]
[1749607689230,4.827724,2789.5,2789.4,10.261]
[1749607690528,0.3587,2789.6,2789.4,10.261]
[1749607690733,4.7,2789.7,2789.4,10.65783989]
[1749607690917,4.7,2789.7,2789.4,10.261]
[1749607691910,1.1366,2790.4,2789.5,0.78950417]
[1749607692105,3.711,2790.8,2789.6,18.911]
[1749607692301,13.12692315,2790.8,2789.4,9.279]
[1749607692520,1.4953,2790.7,2789.5,0.981]
[1749607692935,11.4953,2790.7,2789.4,9.279]
[1749607693103,1.1649,2790.3,2789.5,0.981]
[1749607693302,3.711,2790.2,2789.5,0.981]
[1749607693520,0.52346,2790.1,2789.6,0.981]
[1749607695210,1.5236,2790.3,2789.6,0.981]
[1749607695557,3.711,2790.2,2789.6,0.981]
[1749607697152,1.1861,2790.1,2789.7,0.981]
[1749607697306,1.5448,2790.1,2789.7,0.981]
[1749607697905,1.1861,2790.1,2789.7,0.981]
[1749607698110,1.136,2790.3,2789.7,1.37783989]
[1749607698345,3.711,2790.3,2789.8,0.39683989]
[1749607698506,3.711,2790.4,2789.8,0.39683989]
[1749607698945,3.711,2790.4,2789.7,0.981]
[1749607699154,3.711,2790.3,2789.7,0.981]
[1749607699841,0.3587,2790.6,2789.7,0.981]
[1749607700050,4.0697,2790.6,2789.7,0.981]
[1749607700750,0.3587,2790.6,2789.7,0.981]
[1749607700954,1.176,2790.9,2789.7,10.981]
[1749607701250,0.04,2790.9,2790.0,10.0]
[1749607701968,0.04,2790.9,2790.1,30.0]
[1749607702248,0.04,2790.9,2790.1,15.247]
[1749607702831,0.04,2790.9,2789.9,9.41592315]
[1749607703160,0.04,2790.9,2790.1,10.0]
[1749607704032,0.04,2790.9,2789.9,10.0]
[1749607704435,0.04,2790.9,2790.1,10.0]
[1749607705015,0.04,2790.9,2789.9,10.0]
[1749607705446,0.04,2790.9,2790.1,10.0]
[1749607706012,0.04,2790.9,2789.9,10.0]
[1749607706412,0.04,2790.9,2790.1,10.0]
[1749607707240,0.04,2790.9,2789.9,10.0]
[1749607707464,0.04,2790.9,2790.1,10.0]
[1749607707755,0.04,2790.9,2790.1,9.41592315]
[1749607708743,0.04,2790.9,2790.7,9.41592315]
[1749607709052,0.04,2790.9,2790.3,10.0]
[1749607709250,0.04,2790.9,2790.4,10.981]
[1749607710216,0.04,2790.9,2790.5,30.0]
[1749607713359,0.04,2790.9,2790.7,10.0]
[1749607714354,0.04,2790.9,2790.6,10.0]
[1749607714681,0.04,2790.9,2790.6,30.0]
[1749607715370,9.96592315,2792.2,2790.6,30.0]
[1749607715371,4.7,2793.5,2790.7,29.39573329]
[1749607715661,1.06367112,2795.3,2794.4,27.488]
[1749607715817,1.04658995,2795.8,2794.8,10.0]
[1749607716020,1.04658995,2795.8,2794.9,1.81819089]
[1749607716315,1.04658995,2795.8,2794.3,4.287]
[1749607716316,1.04658995,2795.8,2794.5,10.0]
[1749607716515,1.34671037,2795.8,2794.6,0.29871273]
[1749607716719,1.34671037,2795.8,2794.9,10.0]
[1749607716944,1.34671037,2795.8,2795.0,0.29866998]
[1749607717350,1.34671037,2795.8,2795.1,30.0]
[1749607717547,1.34671037,2795.8,2795.2,0.29864861]
[1749607717752,1.34671037,2795.8,2794.8,7.15697487]
[1749607717753,1.34671037,2795.8,2795.1,10.0]
[1749607717981,1.04658995,2795.8,2795.1,0.692846]
[1749607718283,1.04658995,2795.8,2795.0,30.0]
[1749607719050,1.04658995,2795.8,2795.0,40.0]
[1749607719250,1.04658995,2795.8,2795.1,17.15697487]
[1749607719759,1.04658995,2795.8,2795.2,0.29864861]
[1749607719974,1.34671037,2795.8,2795.2,0.29864861]
[1749607720449,1.1724,2795.7,2795.2,0.29864861]
[1749607720652,4.272,2796.8,2795.2,0.29864861]
[1749607720653,1.1724,2797.4,2796.5,3.57589459]
[1749607720856,1.2758,2797.9,2796.6,13.57576157]
[1749607721060,1.2758,2797.9,2796.6,10.35669181]
[1749607721275,1.2758,2797.9,2796.8,40.0]
[1749607721487,1.2758,2797.9,2796.7,40.0]
[1749607721793,1.2758,2797.9,2796.8,10.0]
[1749607722008,1.2758,2797.9,2796.6,0.35669181]
[1749607722149,1.2758,2797.9,2796.5,10.0]
[1749607722645,1.2758,2797.9,2796.8,43.57551487]
[1749607722844,1.2758,2797.9,2796.8,40.0]
[1749607723395,1.2758,2797.9,2796.8,43.57551487]
[1749607723543,1.2758,2797.9,2796.8,40.0]
[1749607723748,1.2758,2797.9,2796.8,43.57551487]
[1749607724263,0.04,2797.9,2796.9,30.0]
[1749607724477,0.04,2797.9,2797.6,10.0]
[1749607725148,0.04,2797.9,2797.7,10.609]
[1749607725691,0.04,2797.9,2797.7,9.262]
[1749607725889,0.04,2797.9,2797.8,1.346]
[1749607726943,0.04,2797.9,2797.8,14.9202369]
[1749607727142,0.04,2797.9,2797.8,11.346]
[1749607727593,0.04,2797.9,2797.8,44.9202369]
[1749607728095,0.04,2797.9,2797.8,45.49652691]
[1749607728377,0.04,2797.9,2797.8,44.15052691]
[1749607728546,0.04,2797.9,2797.8,45.28290806]
[1749607728979,0.04,2797.9,2797.8,39.86290806]
[1749607729169,0.04,2797.9,2797.8,29.11690806]
[1749607729961,0.04,2797.9,2797.8,27.77090806]
[1749607730163,0.04,2797.9,2797.8,29.11690806]
[1749607730880,0.04,2797.9,2797.8,36.27388293]
[1749607732184,0.04,2797.9,2797.8,34.92788293]
[1749607732386,0.04,2797.9,2797.8,36.27288293]
[1749607732554,1.2066,2798.8,2797.8,32.69864603]
[1749607732750,0.14336581,2799.8,2798.2,40.0]
[1749607732988,1.2233,2799.2,2797.9,20.105]
[1749607733189,1.2233,2799.2,2798.3,10.599]
[1749607733500,1.2381,2799.7,2798.8,30.0]
[1749607733669,1.2381,2799.7,2798.9,30.0]
[1749607733991,1.2381,2799.7,2798.7,10.0]
[1749607734163,1.2381,2799.7,2798.8,1.345]
[1749607734987,1.2381,2799.7,2798.4,10.0]
[1749607735198,0.14336581,2799.8,2798.4,10.0]
[1749607735199,1.2381,2799.5,2798.4,10.0]
[1749607735496,1.2381,2799.3,2798.5,1.345]
[1749607736115,1.2381,2799.3,2798.3,9.254]
[1749607736116,1.2381,2799.3,2798.6,1.345]
[1749607736290,1.2381,2799.3,2798.7,1.345]
[1749607736795,1.2381,2799.3,2798.3,9.254]
[1749607737009,1.2381,2799.3,2798.4,1.345]
[1749607737362,1.2381,2799.3,2797.9,10.0]